[Event "*** SCC Grand Prix: Titled Tuesday Blitz"]
[Site "Chess.com"]
[Date "2020.06.09"]
[Round "10"]
[White "EvgenyRomanov"]
[Black "Semetey"]
[Result "1-0"]
[WhiteElo "2672"]
[BlackElo "2542"]
[TimeControl "180+1"]
[EndTime "10:57:09 PDT"]
[Termination "EvgenyRomanov won on time"]

1. e4 {[%clk 0:03:00.9]} 1... g6 {[%clk 0:02:59.4]} 2. d4 {[%clk 0:03:00.2]}
2... Bg7 {[%clk 0:03:00.3]} 3. Nf3 {[%clk 0:03:00]} 3... d6 {[%clk 0:03:00.3]}
4. Bc4 {[%clk 0:02:59.7]} 4... Nf6 {[%clk 0:02:57.5]} 5. Qe2 {[%clk 0:02:59.1]}
5... O-O {[%clk 0:02:57.1]} 6. Bb3 {[%clk 0:02:58.9]} 6... Bg4 {[%clk
0:02:55.1]} 7. O-O {[%clk 0:02:58.2]} 7... Nc6 {[%clk 0:02:53.8]} 8. c3 {[%clk
0:02:58.4]} 8... e5 {[%clk 0:02:53.1]} 9. dxe5 {[%clk 0:02:56.6]} 9... Nxe5
{[%clk 0:02:51]} 10. Nbd2 {[%clk 0:02:56.5]} 10... Re8 {[%clk 0:02:50.8]} 11.
Re1 {[%clk 0:02:19.7]} 11... Nxf3+ {[%clk 0:02:46.8]} 12. gxf3 {[%clk
0:02:18.6]} 12... Bh3 {[%clk 0:02:41.3]} 13. Nf1 {[%clk 0:02:16.4]} 13... d5
{[%clk 0:02:31.1]} 14. Ng3 {[%clk 0:02:15.8]} 14... dxe4 {[%clk 0:01:54.3]} 15.
fxe4 {[%clk 0:02:16.7]} 15... Ng4 {[%clk 0:01:53.6]} 16. f3 {[%clk 0:02:06.8]}
16... Ne5 {[%clk 0:01:51.4]} 17. f4 {[%clk 0:01:53.1]} 17... Bg4 {[%clk
0:01:50.5]} 18. Qf2 {[%clk 0:01:46.5]} 18... Nf3+ {[%clk 0:01:50.4]} 19. Kg2
{[%clk 0:01:46]} 19... Nxe1+ {[%clk 0:01:50.1]} 20. Qxe1 {[%clk 0:01:46.7]}
20... Qd7 {[%clk 0:01:43.3]} 21. Be3 {[%clk 0:01:44.2]} 21... h5 {[%clk
0:01:30.8]} 22. e5 {[%clk 0:01:37.3]} 22... h4 {[%clk 0:01:09.7]} 23. Nh1 {[%clk
0:01:36.3]} 23... Qc6+ {[%clk 0:00:55]} 24. Kg1 {[%clk 0:01:31.2]} 24... Bh3
{[%clk 0:00:34.2]} 25. Qf2 {[%clk 0:01:21.5]} 25... Rad8 {[%clk 0:00:32.9]} 26.
Bd4 {[%clk 0:01:18.1]} 26... Qe4 {[%clk 0:00:18.9]} 27. Re1 {[%clk 0:01:17.2]}
27... Qf5 {[%clk 0:00:18.8]} 28. Qxh4 {[%clk 0:01:14.2]} 28... Rxd4 {[%clk
0:00:13.1]} 29. cxd4 {[%clk 0:01:12.8]} 29... Qg4+ {[%clk 0:00:09.1]} 30. Qg3
{[%clk 0:01:12.3]} 30... Kf8 {[%clk 0:00:07.3]} 31. Nf2 {[%clk 0:01:11.5]} 31...
Qxg3+ {[%clk 0:00:07.1]} 32. hxg3 {[%clk 0:01:12.4]} 32... Bd7 {[%clk
0:00:07.6]} 33. g4 {[%clk 0:01:10.2]} 33... c6 {[%clk 0:00:07.7]} 34. Kg2 {[%clk
0:01:09.2]} 34... Bc8 {[%clk 0:00:06.7]} 35. Kf3 {[%clk 0:01:09.1]} 35... f6
{[%clk 0:00:07.1]} 36. Ne4 {[%clk 0:01:07.2]} 36... fxe5 {[%clk 0:00:06]} 37.
dxe5 {[%clk 0:01:06.9]} 37... Rd8 {[%clk 0:00:06.2]} 38. Nd6 {[%clk 0:01:06.7]}
38... b6 {[%clk 0:00:06.7]} 39. Rh1 {[%clk 0:01:03]} 39... c5 {[%clk 0:00:06.2]}
40. Rh7 {[%clk 0:01:00.9]} 40... Bd7 {[%clk 0:00:06.4]} 41. f5 {[%clk
0:00:56.3]} 41... Bc6+ {[%clk 0:00:06.5]} 42. Kf4 {[%clk 0:00:55.8]} 1-0

[Event "*** SCC Grand Prix: Titled Tuesday Blitz"]
[Site "Chess.com"]
[Date "2020.06.09"]
[Round "10"]
[White "dretch"]
[Black "Colchonero64"]
[Result "0-1"]
[WhiteElo "2826"]
[BlackElo "2992"]
[TimeControl "180+1"]
[EndTime "10:57:11 PDT"]
[Termination "Colchonero64 won on time"]

1. d4 {[%clk 0:03:00.9]} 1... Nf6 {[%clk 0:02:59.4]} 2. c4 {[%clk 0:03:01]} 2...
g6 {[%clk 0:02:59.4]} 3. Nc3 {[%clk 0:03:01.3]} 3... Bg7 {[%clk 0:02:59.6]} 4.
e4 {[%clk 0:03:01.6]} 4... d6 {[%clk 0:02:59.8]} 5. Nf3 {[%clk 0:03:01.8]} 5...
O-O {[%clk 0:02:59.6]} 6. h3 {[%clk 0:03:01.9]} 6... e5 {[%clk 0:02:59.2]} 7. d5
{[%clk 0:02:59.4]} 7... Nh5 {[%clk 0:02:56.8]} 8. g3 {[%clk 0:02:59.5]} 8... a5
{[%clk 0:02:54.5]} 9. Nd2 {[%clk 0:02:50.8]} 9... Na6 {[%clk 0:02:49.4]} 10. Be2
{[%clk 0:02:49.5]} 10... Nf6 {[%clk 0:02:49.4]} 11. Nb3 {[%clk 0:02:47.7]} 11...
a4 {[%clk 0:02:43.3]} 12. Nd2 {[%clk 0:02:37.7]} 12... Nc5 {[%clk 0:02:43.1]}
13. Rb1 {[%clk 0:02:36.6]} 13... c6 {[%clk 0:02:42.2]} 14. b4 {[%clk 0:02:27.7]}
14... axb3 {[%clk 0:02:42.2]} 15. axb3 {[%clk 0:02:28.6]} 15... Bd7 {[%clk
0:02:22.6]} 16. b4 {[%clk 0:02:26.7]} 16... Na6 {[%clk 0:02:21.1]} 17. dxc6
{[%clk 0:02:23.9]} 17... bxc6 {[%clk 0:02:20.7]} 18. Kf1 {[%clk 0:02:11.9]}
18... Nc7 {[%clk 0:02:19.3]} 19. Nb3 {[%clk 0:02:08.2]} 19... Be6 {[%clk
0:02:17.1]} 20. Be3 {[%clk 0:01:57]} 20... d5 {[%clk 0:02:15.3]} 21. Bb6 {[%clk
0:01:47]} 21... d4 {[%clk 0:02:13]} 22. Nc5 {[%clk 0:01:35.3]} 22... dxc3 {[%clk
0:01:41.2]} 23. Qxd8 {[%clk 0:01:34.3]} 23... Rfxd8 {[%clk 0:01:41.4]} 24. Bxc7
{[%clk 0:01:32.9]} 24... Rd2 {[%clk 0:01:38.2]} 25. Ba5 {[%clk 0:00:15.2]} 25...
Bf8 {[%clk 0:01:25.6]} 26. Nxe6 {[%clk 0:00:10.3]} 26... fxe6 {[%clk 0:01:25.8]}
27. f3 {[%clk 0:00:10.9]} 27... c5 {[%clk 0:01:24.4]} 28. Kf2 {[%clk 0:00:10.2]}
28... Nh5 {[%clk 0:01:20.2]} 29. Ke3 {[%clk 0:00:09.2]} 29... cxb4 {[%clk
0:01:05.2]} 30. Bxb4 {[%clk 0:00:09]} 30... Bxb4 {[%clk 0:01:04.8]} 31. Rxb4
{[%clk 0:00:08.9]} 31... Rxe2+ {[%clk 0:01:04.7]} 32. Kxe2 {[%clk 0:00:08.7]}
32... Nxg3+ {[%clk 0:01:05.1]} 33. Kd3 {[%clk 0:00:08]} 33... Nxh1 {[%clk
0:01:05.2]} 34. c5 {[%clk 0:00:07.7]} 34... Rc8 {[%clk 0:00:59.1]} 35. Rb5
{[%clk 0:00:06.3]} 35... Ng3 {[%clk 0:00:55.6]} 36. Kxc3 {[%clk 0:00:05.9]}
36... Ne2+ {[%clk 0:00:49.8]} 37. Kb4 {[%clk 0:00:04.6]} 37... Kg7 {[%clk
0:00:47.8]} 38. Rb7+ {[%clk 0:00:04.1]} 38... Kh6 {[%clk 0:00:46.6]} 39. Re7
{[%clk 0:00:02.7]} 39... Nd4 {[%clk 0:00:45.8]} 40. Kc4 {[%clk 0:00:02.2]} 40...
Rf8 {[%clk 0:00:41.3]} 0-1

[Event "*** SCC Grand Prix: Titled Tuesday Blitz"]
[Site "Chess.com"]
[Date "2020.06.09"]
[Round "10"]
[White "Meri-Arabidze"]
[Black "Unknown_IM"]
[Result "1-0"]
[WhiteElo "2644"]
[BlackElo "2466"]
[TimeControl "180+1"]
[EndTime "10:57:11 PDT"]
[Termination "Meri-Arabidze won by resignation"]

1. d4 {[%clk 0:03:00.9]} 1... d5 {[%clk 0:02:59.3]} 2. c4 {[%clk 0:03:01.6]}
2... e6 {[%clk 0:02:59.2]} 3. Nf3 {[%clk 0:03:02.5]} 3... c6 {[%clk 0:02:59.1]}
4. Nc3 {[%clk 0:03:03.4]} 4... dxc4 {[%clk 0:02:58.9]} 5. e4 {[%clk 0:03:01.1]}
5... b5 {[%clk 0:02:58.6]} 6. Be2 {[%clk 0:02:59.5]} 6... Bb7 {[%clk 0:02:58.1]}
7. O-O {[%clk 0:02:58.9]} 7... a6 {[%clk 0:02:58.5]} 8. e5 {[%clk 0:02:58.4]}
8... c5 {[%clk 0:02:56.7]} 9. a4 {[%clk 0:02:49.6]} 9... Qb6 {[%clk 0:02:52.9]}
10. axb5 {[%clk 0:02:48.4]} 10... axb5 {[%clk 0:02:52.8]} 11. Rxa8 {[%clk
0:02:48.9]} 11... Bxa8 {[%clk 0:02:53.7]} 12. d5 {[%clk 0:02:45]} 12... Ne7
{[%clk 0:02:30]} 13. d6 {[%clk 0:02:35.7]} 13... Nd5 {[%clk 0:02:30.2]} 14. Ne4
{[%clk 0:02:31.7]} 14... Nd7 {[%clk 0:02:29.3]} 15. Bg5 {[%clk 0:02:27.9]} 15...
h6 {[%clk 0:02:28.7]} 16. Bh4 {[%clk 0:02:25]} 16... g5 {[%clk 0:02:28.3]} 17.
Bg3 {[%clk 0:02:24.8]} 17... Bg7 {[%clk 0:02:27.2]} 18. Qd2 {[%clk 0:01:54]}
18... g4 {[%clk 0:02:03.2]} 19. Nh4 {[%clk 0:01:47.6]} 19... Bxe5 {[%clk
0:02:02.9]} 20. Bxg4 {[%clk 0:01:42.5]} 20... Bxg3 {[%clk 0:02:01.3]} 21. fxg3
{[%clk 0:01:41.1]} 21... c3 {[%clk 0:01:01]} 22. bxc3 {[%clk 0:01:37.9]} 22...
c4+ {[%clk 0:01:00.9]} 23. Kh1 {[%clk 0:01:38.2]} 23... Ne3 {[%clk 0:00:59.8]}
24. Rf4 {[%clk 0:01:08.6]} 24... Nxg4 {[%clk 0:00:51.4]} 25. Rxg4 {[%clk
0:01:07.2]} 25... f5 {[%clk 0:00:46.1]} 26. Rg7 {[%clk 0:01:01.1]} 26... fxe4
{[%clk 0:00:20.4]} 27. Ng6 {[%clk 0:01:00.3]} 27... e3 {[%clk 0:00:20.2]} 28.
Qe2 {[%clk 0:00:59.8]} 28... Rf8 {[%clk 0:00:19.1]} 29. Re7+ {[%clk 0:00:56.6]}
29... Kd8 {[%clk 0:00:19]} 30. Nxf8 {[%clk 0:00:19.2]} 30... Nxf8 {[%clk
0:00:19.9]} 31. Qh5 {[%clk 0:00:19]} 31... Kc8 {[%clk 0:00:15.9]} 32. Qe8+
{[%clk 0:00:18.6]} 1-0

[Event "*** SCC Grand Prix: Titled Tuesday Blitz"]
[Site "Chess.com"]
[Date "2020.06.09"]
[Round "10"]
[White "ehrenfeld"]
[Black "AndrewDGreen"]
[Result "1-0"]
[WhiteElo "2492"]
[BlackElo "2352"]
[TimeControl "180+1"]
[EndTime "10:57:12 PDT"]
[Termination "ehrenfeld won by checkmate"]

1. e4 {[%clk 0:03:00.9]} 1... c5 {[%clk 0:02:59.9]} 2. d3 {[%clk 0:03:00.7]}
2... g6 {[%clk 0:02:59.9]} 3. f4 {[%clk 0:03:00.8]} 3... Bg7 {[%clk 0:03:00.1]}
4. Nf3 {[%clk 0:03:01.3]} 4... Nc6 {[%clk 0:03:00.4]} 5. Be2 {[%clk 0:03:01.8]}
5... d6 {[%clk 0:03:00.5]} 6. O-O {[%clk 0:03:02.3]} 6... e5 {[%clk 0:03:00.6]}
7. c3 {[%clk 0:03:01.8]} 7... Nge7 {[%clk 0:02:59.4]} 8. Na3 {[%clk 0:03:01.4]}
8... O-O {[%clk 0:02:57.3]} 9. Qe1 {[%clk 0:03:01.3]} 9... f5 {[%clk 0:02:44.1]}
10. Qh4 {[%clk 0:02:56.2]} 10... Rb8 {[%clk 0:02:28.7]} 11. fxe5 {[%clk
0:02:40.3]} 11... Nxe5 {[%clk 0:01:51]} 12. Nxe5 {[%clk 0:02:17.6]} 12... Bxe5
{[%clk 0:01:43]} 13. Nc4 {[%clk 0:02:13.2]} 13... Bf6 {[%clk 0:01:35.8]} 14. Qg3
{[%clk 0:02:10.2]} 14... b5 {[%clk 0:01:08.1]} 15. Nxd6 {[%clk 0:01:59.8]} 15...
f4 {[%clk 0:00:54]} 16. Bxf4 {[%clk 0:01:54.3]} 16... Rb6 {[%clk 0:00:51.8]} 17.
Nxc8 {[%clk 0:01:36.9]} 17... Nxc8 {[%clk 0:00:50.7]} 18. Rad1 {[%clk
0:01:35.3]} 18... b4 {[%clk 0:00:50.4]} 19. e5 {[%clk 0:01:33.2]} 19... Bg7
{[%clk 0:00:48.5]} 20. d4 {[%clk 0:01:32.6]} 20... bxc3 {[%clk 0:00:47.7]} 21.
bxc3 {[%clk 0:01:31.8]} 21... Rb2 {[%clk 0:00:47.2]} 22. Bc4+ {[%clk 0:01:30.9]}
22... Kh8 {[%clk 0:00:47.8]} 23. Bg5 {[%clk 0:01:09.2]} 23... Rxf1+ {[%clk
0:00:43.7]} 24. Rxf1 {[%clk 0:01:07.8]} 24... Qe8 {[%clk 0:00:38.7]} 25. Qf4
{[%clk 0:01:00.5]} 25... cxd4 {[%clk 0:00:33.6]} 26. cxd4 {[%clk 0:00:56.1]}
26... Qc6 {[%clk 0:00:31.7]} 27. d5 {[%clk 0:00:56.1]} 27... Qc5+ {[%clk
0:00:28.8]} 28. Kh1 {[%clk 0:00:55]} 28... Rb4 {[%clk 0:00:26.1]} 29. Qf7 {[%clk
0:00:42.8]} 29... h6 {[%clk 0:00:15.8]} 30. Bf6 {[%clk 0:00:40.4]} 30... Bxf6
{[%clk 0:00:07]} 31. Qxf6+ {[%clk 0:00:40.3]} 31... Kh7 {[%clk 0:00:06.4]} 32.
Bd3 {[%clk 0:00:36.4]} 32... Rg4 {[%clk 0:00:03.4]} 33. Qf7+ {[%clk 0:00:31.2]}
33... Kh8 {[%clk 0:00:03.1]} 34. Qe8+ {[%clk 0:00:29.3]} 34... Kg7 {[%clk
0:00:02.4]} 35. Rf7# {[%clk 0:00:28.8]} 1-0

[Event "*** SCC Grand Prix: Titled Tuesday Blitz"]
[Site "Chess.com"]
[Date "2020.06.09"]
[Round "10"]
[White "Rinas_Oleg"]
[Black "topin8"]
[Result "1-0"]
[WhiteElo "2249"]
[BlackElo "2339"]
[TimeControl "180+1"]
[EndTime "10:57:15 PDT"]
[Termination "Rinas_Oleg won on time"]

1. e4 {[%clk 0:03:00.9]} 1... e5 {[%clk 0:02:57.2]} 2. Nf3 {[%clk 0:03:00]} 2...
Nc6 {[%clk 0:02:55.5]} 3. Bb5 {[%clk 0:02:59.8]} 3... Nf6 {[%clk 0:02:55.6]} 4.
d3 {[%clk 0:02:57.4]} 4... Bc5 {[%clk 0:02:55.1]} 5. O-O {[%clk 0:02:55]} 5...
d6 {[%clk 0:02:53.5]} 6. c3 {[%clk 0:02:51.6]} 6... a6 {[%clk 0:02:50.8]} 7. Ba4
{[%clk 0:02:50.7]} 7... O-O {[%clk 0:02:48.6]} 8. h3 {[%clk 0:02:48.9]} 8... h6
{[%clk 0:02:48.4]} 9. Nbd2 {[%clk 0:02:47.1]} 9... Ba7 {[%clk 0:02:48.2]} 10.
Bc2 {[%clk 0:02:44.1]} 10... Ne7 {[%clk 0:02:48]} 11. Nc4 {[%clk 0:02:43.3]}
11... Ng6 {[%clk 0:02:47.9]} 12. Be3 {[%clk 0:02:37]} 12... b5 {[%clk
0:02:01.1]} 13. Ncd2 {[%clk 0:02:30.6]} 13... c6 {[%clk 0:01:54.5]} 14. d4
{[%clk 0:02:24.3]} 14... Re8 {[%clk 0:01:24.8]} 15. a4 {[%clk 0:02:21]} 15...
Bb7 {[%clk 0:00:55.5]} 16. axb5 {[%clk 0:02:14.5]} 16... cxb5 {[%clk 0:00:46.6]}
17. d5 {[%clk 0:02:13.7]} 17... Bxe3 {[%clk 0:00:31.9]} 18. fxe3 {[%clk
0:02:12.5]} 18... Qb6 {[%clk 0:00:32.8]} 19. Qe2 {[%clk 0:02:09.7]} 19... a5
{[%clk 0:00:31.3]} 20. Kh2 {[%clk 0:02:01.1]} 20... Rec8 {[%clk 0:00:25.8]} 21.
g4 {[%clk 0:01:46.7]} 21... Nh7 {[%clk 0:00:22.4]} 22. h4 {[%clk 0:01:44]} 22...
a4 {[%clk 0:00:19.9]} 23. g5 {[%clk 0:01:36.8]} 23... hxg5 {[%clk 0:00:20.1]}
24. Nxg5 {[%clk 0:01:31.6]} 24... Nxg5 {[%clk 0:00:17.9]} 25. hxg5 {[%clk
0:01:30.7]} 25... a3 {[%clk 0:00:18.5]} 26. Rxa3 {[%clk 0:01:12.2]} 26... Rxa3
{[%clk 0:00:17.5]} 27. bxa3 {[%clk 0:01:12]} 27... Rxc3 {[%clk 0:00:18.2]} 28.
Bd3 {[%clk 0:01:11.7]} 28... Bc8 {[%clk 0:00:11.3]} 29. Rb1 {[%clk 0:01:06.9]}
29... Qa7 {[%clk 0:00:09]} 30. Rxb5 {[%clk 0:01:03.2]} 30... Qd7 {[%clk
0:00:07.7]} 31. Rb8 {[%clk 0:00:48.5]} 31... Qh3+ {[%clk 0:00:07.4]} 32. Kg1
{[%clk 0:00:48]} 32... Ne7 {[%clk 0:00:04.3]} 33. a4 {[%clk 0:00:44.9]} 33...
Qg3+ {[%clk 0:00:03.5]} 34. Kh1 {[%clk 0:00:37.3]} 34... Rc1+ {[%clk 0:00:02.9]}
35. Nf1 {[%clk 0:00:35.9]} 35... Qh3+ {[%clk 0:00:01.3]} 36. Kg1 {[%clk
0:00:32.8]} 1-0

[Event "*** SCC Grand Prix: Titled Tuesday Blitz"]
[Site "Chess.com"]
[Date "2020.06.09"]
[Round "10"]
[White "politeplayer"]
[Black "Azoulas1"]
[Result "1-0"]
[WhiteElo "2268"]
[BlackElo "2000"]
[TimeControl "180+1"]
[EndTime "10:57:16 PDT"]
[Termination "politeplayer won by checkmate"]

1. d4 {[%clk 0:03:00.9]} 1... Nf6 {[%clk 0:02:57.8]} 2. Bg5 {[%clk 0:02:59.6]}
2... e6 {[%clk 0:02:57.5]} 3. e4 {[%clk 0:02:58.6]} 3... Be7 {[%clk 0:02:57.2]}
4. e5 {[%clk 0:02:57.6]} 4... Nd5 {[%clk 0:02:55.4]} 5. Bc1 {[%clk 0:02:53.3]}
5... c5 {[%clk 0:02:54]} 6. c4 {[%clk 0:02:51.5]} 6... Nc7 {[%clk 0:02:52.3]} 7.
d5 {[%clk 0:02:51.7]} 7... d6 {[%clk 0:02:51.4]} 8. exd6 {[%clk 0:02:49.7]} 8...
Bxd6 {[%clk 0:02:49.2]} 9. Nc3 {[%clk 0:02:48.8]} 9... exd5 {[%clk 0:02:46]} 10.
cxd5 {[%clk 0:02:48]} 10... O-O {[%clk 0:02:44.1]} 11. Nf3 {[%clk 0:02:47.3]}
11... Re8+ {[%clk 0:02:42.2]} 12. Be2 {[%clk 0:02:47.3]} 12... Nd7 {[%clk
0:02:40.2]} 13. Bg5 {[%clk 0:02:43.8]} 13... Nf6 {[%clk 0:02:37.8]} 14. O-O
{[%clk 0:02:40.7]} 14... h6 {[%clk 0:02:35.6]} 15. Bh4 {[%clk 0:02:40.9]} 15...
Bf5 {[%clk 0:02:33.1]} 16. Re1 {[%clk 0:02:31.5]} 16... a6 {[%clk 0:02:20.6]}
17. a4 {[%clk 0:02:30.4]} 17... Rc8 {[%clk 0:02:14.2]} 18. Qd2 {[%clk
0:02:29.3]} 18... g5 {[%clk 0:02:00.6]} 19. Nxg5 {[%clk 0:02:24]} 19... Ng4
{[%clk 0:01:22.2]} 20. Bxg4 {[%clk 0:02:07.6]} 20... Bxg4 {[%clk 0:01:19.2]} 21.
Rxe8+ {[%clk 0:02:03]} 21... Nxe8 {[%clk 0:01:13.8]} 22. Nf3 {[%clk 0:01:57.5]}
22... f6 {[%clk 0:01:00.3]} 23. Qxh6 {[%clk 0:01:53.4]} 23... Bxf3 {[%clk
0:00:58.3]} 24. gxf3 {[%clk 0:01:44.9]} 24... Qc7 {[%clk 0:00:57.8]} 25. Kh1
{[%clk 0:01:40.3]} 25... Bxh2 {[%clk 0:00:53.9]} 26. f4 {[%clk 0:01:39.8]} 26...
Bxf4 {[%clk 0:00:50.8]} 27. Rg1+ {[%clk 0:01:39.3]} 27... Ng7 {[%clk 0:00:49.1]}
28. Rxg7+ {[%clk 0:01:33.8]} 28... Qxg7 {[%clk 0:00:46.5]} 29. Qxf4 {[%clk
0:01:34.1]} 29... Re8 {[%clk 0:00:45.5]} 30. Ne4 {[%clk 0:01:28.2]} 30... Kf7
{[%clk 0:00:29.7]} 31. Nd6+ {[%clk 0:01:25.5]} 31... Ke7 {[%clk 0:00:27.8]} 32.
Bxf6+ {[%clk 0:01:15.9]} 32... Qxf6 {[%clk 0:00:25.8]} 33. Qxf6+ {[%clk
0:01:14.7]} 33... Kxf6 {[%clk 0:00:26.3]} 34. Nxe8+ {[%clk 0:01:14.8]} 34... Ke7
{[%clk 0:00:25.8]} 35. Nc7 {[%clk 0:01:14.1]} 35... Kd6 {[%clk 0:00:24.2]} 36.
Na8 {[%clk 0:01:09.4]} 36... Kxd5 {[%clk 0:00:23.4]} 37. Kg2 {[%clk 0:01:09.7]}
37... b5 {[%clk 0:00:21.8]} 38. axb5 {[%clk 0:01:08.8]} 38... axb5 {[%clk
0:00:21.7]} 39. Nc7+ {[%clk 0:01:08.3]} 39... Kc6 {[%clk 0:00:20.5]} 40. Nxb5
{[%clk 0:01:07.8]} 40... Kxb5 {[%clk 0:00:19.7]} 41. Kf3 {[%clk 0:01:07.5]}
41... Kb4 {[%clk 0:00:20.2]} 42. Ke4 {[%clk 0:01:06.8]} 42... Kb3 {[%clk
0:00:20.2]} 43. Kd5 {[%clk 0:01:06.8]} 43... c4 {[%clk 0:00:19.5]} 44. f4 {[%clk
0:01:06.6]} 44... Kxb2 {[%clk 0:00:17.5]} 45. Kxc4 {[%clk 0:01:06.5]} 45... Kc2
{[%clk 0:00:17.1]} 46. f5 {[%clk 0:01:06.3]} 46... Kd2 {[%clk 0:00:18]} 47. f6
{[%clk 0:01:01.6]} 47... Ke3 {[%clk 0:00:18.9]} 48. f7 {[%clk 0:01:01.8]} 48...
Ke4 {[%clk 0:00:19.8]} 49. f8=Q {[%clk 0:01:01.8]} 49... Ke5 {[%clk 0:00:20.7]}
50. Qd8 {[%clk 0:01:01.4]} 50... Ke6 {[%clk 0:00:21.6]} 51. Qd5+ {[%clk
0:01:00.6]} 51... Ke7 {[%clk 0:00:22.5]} 52. Qc6 {[%clk 0:01:00.6]} 52... Kf8
{[%clk 0:00:22.9]} 53. Kd5 {[%clk 0:01:00.9]} 53... Kg7 {[%clk 0:00:23.4]} 54.
Qd6 {[%clk 0:01:00.6]} 54... Kh8 {[%clk 0:00:24]} 55. Qe7 {[%clk 0:01:00.3]}
55... Kg8 {[%clk 0:00:23.4]} 56. Ke6 {[%clk 0:01:00.4]} 56... Kh8 {[%clk
0:00:24.2]} 57. Kf6 {[%clk 0:01:00.9]} 57... Kg8 {[%clk 0:00:24]} 58. Qg7#
{[%clk 0:01:01.3]} 1-0

[Event "*** SCC Grand Prix: Titled Tuesday Blitz"]
[Site "Chess.com"]
[Date "2020.06.09"]
[Round "10"]
[White "trriinu"]
[Black "Xeniya2005"]
[Result "0-1"]
[WhiteElo "2062"]
[BlackElo "2309"]
[TimeControl "180+1"]
[EndTime "10:57:17 PDT"]
[Termination "Xeniya2005 won on time"]

1. e4 {[%clk 0:03:00.1]} 1... e6 {[%clk 0:02:59.2]} 2. d4 {[%clk 0:02:59.9]}
2... d5 {[%clk 0:02:58.2]} 3. Nd2 {[%clk 0:02:59.4]} 3... Nc6 {[%clk 0:02:57.2]}
4. Ngf3 {[%clk 0:02:57.7]} 4... dxe4 {[%clk 0:02:48]} 5. Nxe4 {[%clk 0:02:57.2]}
5... Be7 {[%clk 0:02:46.8]} 6. Be3 {[%clk 0:02:37.9]} 6... Nf6 {[%clk
0:02:45.5]} 7. Bd3 {[%clk 0:02:25]} 7... h6 {[%clk 0:02:44.5]} 8. h3 {[%clk
0:02:24.5]} 8... O-O {[%clk 0:02:34.4]} 9. O-O {[%clk 0:02:22]} 9... b6 {[%clk
0:02:23.8]} 10. c3 {[%clk 0:02:18.2]} 10... Bb7 {[%clk 0:02:22.7]} 11. Qc2
{[%clk 0:02:16.9]} 11... Nd5 {[%clk 0:02:08.5]} 12. Bd2 {[%clk 0:02:10.3]} 12...
a5 {[%clk 0:02:00]} 13. a3 {[%clk 0:02:05.7]} 13... Nf6 {[%clk 0:01:47.7]} 14.
Rfe1 {[%clk 0:01:58.5]} 14... Qd7 {[%clk 0:01:46]} 15. Bb5 {[%clk 0:01:36.1]}
15... Nxe4 {[%clk 0:01:13.3]} 16. Qxe4 {[%clk 0:01:31.4]} 16... Bf6 {[%clk
0:01:12.4]} 17. Qg4 {[%clk 0:01:22.7]} 17... Kh8 {[%clk 0:01:08.7]} 18. Bf4
{[%clk 0:01:21.4]} 18... Rac8 {[%clk 0:00:55]} 19. Qh5 {[%clk 0:01:18.8]} 19...
Kg8 {[%clk 0:00:46.8]} 20. g4 {[%clk 0:01:01.6]} 20... Rfd8 {[%clk 0:00:25.9]}
21. g5 {[%clk 0:00:40.7]} 21... Qd5 {[%clk 0:00:22]} 22. c4 {[%clk 0:00:39]}
22... Qf5 {[%clk 0:00:21.3]} 23. Qg4 {[%clk 0:00:27.7]} 23... Qxg4+ {[%clk
0:00:20.2]} 24. hxg4 {[%clk 0:00:27.9]} 24... hxg5 {[%clk 0:00:20]} 25. Bxg5
{[%clk 0:00:06.9]} 25... Bxg5 {[%clk 0:00:19.6]} 26. Bxc6 {[%clk 0:00:06.6]}
26... Bxc6 {[%clk 0:00:19.2]} 27. Nxg5 {[%clk 0:00:05.1]} 27... Rxd4 {[%clk
0:00:19.7]} 28. f3 {[%clk 0:00:03.3]} 28... Rcd8 {[%clk 0:00:18.5]} 0-1

[Event "*** SCC Grand Prix: Titled Tuesday Blitz"]
[Site "Chess.com"]
[Date "2020.06.09"]
[Round "10"]
[White "Anton_Demchenko"]
[Black "GM_dmitrij"]
[Result "1/2-1/2"]
[WhiteElo "2829"]
[BlackElo "2961"]
[TimeControl "180+1"]
[EndTime "10:57:19 PDT"]
[Termination "Game drawn by repetition"]

1. d4 {[%clk 0:03:00.9]} 1... Nf6 {[%clk 0:02:59.6]} 2. Nf3 {[%clk 0:03:01.2]}
2... e6 {[%clk 0:02:59.5]} 3. Bf4 {[%clk 0:03:01.2]} 3... d5 {[%clk 0:02:59.4]}
4. e3 {[%clk 0:03:01.7]} 4... Bd6 {[%clk 0:02:59.7]} 5. Ne5 {[%clk 0:03:02.1]}
5... c5 {[%clk 0:02:58.3]} 6. Bb5+ {[%clk 0:02:58.8]} 6... Kf8 {[%clk
0:02:41.5]} 7. dxc5 {[%clk 0:02:55.8]} 7... Bxc5 {[%clk 0:02:37.9]} 8. O-O
{[%clk 0:02:55.5]} 8... Nbd7 {[%clk 0:02:17.5]} 9. c4 {[%clk 0:02:47.7]} 9...
Nb6 {[%clk 0:02:07]} 10. Nc3 {[%clk 0:02:40.1]} 10... a6 {[%clk 0:02:05]} 11.
Ba4 {[%clk 0:02:40.5]} 11... Nxa4 {[%clk 0:02:01.8]} 12. Qxa4 {[%clk 0:02:39.9]}
12... h6 {[%clk 0:01:48.8]} 13. Rfd1 {[%clk 0:02:38]} 13... g5 {[%clk
0:01:46.8]} 14. Bg3 {[%clk 0:02:37]} 14... b5 {[%clk 0:01:37.5]} 15. cxb5 {[%clk
0:02:27.2]} 15... Kg7 {[%clk 0:01:37.5]} 16. Rac1 {[%clk 0:02:24.5]} 16... Qb6
{[%clk 0:01:25]} 17. Qb3 {[%clk 0:01:53.3]} 17... axb5 {[%clk 0:01:17.2]} 18.
Nxb5 {[%clk 0:01:53.3]} 18... Ba6 {[%clk 0:01:14.4]} 19. a4 {[%clk 0:01:04.4]}
19... Bxb5 {[%clk 0:01:14]} 20. axb5 {[%clk 0:01:05.3]} 20... Ra5 {[%clk
0:01:10.5]} 21. Nd3 {[%clk 0:00:39.4]} 21... Rxb5 {[%clk 0:00:38.1]} 22. Qa4
{[%clk 0:00:39.6]} 22... Ne4 {[%clk 0:00:34.5]} 23. Be5+ {[%clk 0:00:34.4]}
23... f6 {[%clk 0:00:34.4]} 24. Bd4 {[%clk 0:00:34.9]} 24... Bxd4 {[%clk
0:00:33.1]} 25. exd4 {[%clk 0:00:34.8]} 25... Rf8 {[%clk 0:00:23]} 26. b4 {[%clk
0:00:35.1]} 26... Rf7 {[%clk 0:00:18.9]} 27. Nc5 {[%clk 0:00:32.1]} 27... Rxb4
{[%clk 0:00:15]} 28. Nxe6+ {[%clk 0:00:32.3]} 28... Kg6 {[%clk 0:00:14.7]} 29.
Qe8 {[%clk 0:00:32.3]} 29... Qb8 {[%clk 0:00:11]} 30. Rc8 {[%clk 0:00:32]} 30...
Rb1 {[%clk 0:00:11.1]} 31. Nf8+ {[%clk 0:00:11.1]} 31... Kg7 {[%clk 0:00:08.9]}
32. Ne6+ {[%clk 0:00:10.3]} 32... Kg6 {[%clk 0:00:09.8]} 33. Nf8+ {[%clk
0:00:10.7]} 33... Kg7 {[%clk 0:00:10.1]} 34. Ne6+ {[%clk 0:00:10.5]} 34... Kg6
{[%clk 0:00:11]} 1/2-1/2